fUSD/lending_fUSD_20240814
["ID","MTS","AMOUNT","RATE_DAILY","PERIOD"]
[334826603,1723605068359,-1346.58,0.00014246,2]
[334826604,1723605068370,-500.0,0.00014246,2]
[334826605,1723605068380,-500.0,0.00014246,2]
[334826606,1723605068390,-1144.08,0.00014246,2]
[334826607,1723605068399,-3141.73,0.00014246,2]
[334826608,1723605068409,-500.0,0.00014246,2]
[334826609,1723605068419,-1273.67,0.00014246,2]
[334826610,1723605068428,-500.0,0.00014246,2]
[334826611,1723605068438,-2542.61,0.00014246,2]
[334826612,1723605068448,-631.05557516,0.00014246,2]
[334826613,1723605068459,-500.0,0.00014246,2]
[334826614,1723605068468,-500.0,0.00014246,2]
[334826615,1723605068478,-571.81859235,0.00014246,2]
[334826616,1723605068488,-500.0,0.00014246,2]
[334826617,1723605068497,-500.0,0.00014246,2]
[334826618,1723605068507,-500.0,0.00014246,2]
[334826619,1723605068516,-500.0,0.00014246,2]
[334826620,1723605068526,-2720.24,0.00014246,2]
[334826621,1723605068536,-743.4,0.00014246,2]
[334826622,1723605068545,-1731.7,0.00014246,2]
[334826623,1723605068555,-500.0,0.00014246,2]
[334826624,1723605068565,-1478.0,0.00014246,2]
[334826625,1723605068574,-500.0,0.00014246,2]
[334826626,1723605068587,-500.0,0.00014246,2]
[334826627,1723605068596,-500.0,0.00014246,2]
[334826628,1723605068605,-500.0,0.00014246,2]
[334826629,1723605068615,-500.0,0.00014246,2]
[334826630,1723605068624,-3406.91,0.00014246,2]
[334826631,1723605068634,-500.0,0.00014246,2]
[334826632,1723605068643,-597.7,0.00014246,2]
[334826633,1723605068652,-500.0,0.00014246,2]
[334826634,1723605068662,-3422.23,0.00014246,2]
[334826635,1723605068671,-500.0,0.00014246,2]
[334826636,1723605068680,-500.0,0.00014246,2]
[334826637,1723605068690,-2279.94,0.00014246,2]
[334826638,1723605068700,-1289.81,0.00014246,2]
[334826639,1723605068710,-500.0,0.00014246,2]
[334826640,1723605068719,-665.5,0.00014246,2]
[334826641,1723605068728,-500.0,0.00014246,2]
[334826642,1723605068738,-1427.7,0.00014246,2]
[334826643,1723605068747,-500.0,0.00014246,2]
[334826644,1723605068756,-500.0,0.00014246,2]
[334826645,1723605068766,-500.0,0.00014246,2]
[334826646,1723605068775,-2265.5,0.00014246,2]
[334826647,1723605068785,-528.88464282,0.00014246,2]
[334826648,1723605068795,-500.0,0.00014246,2]
[334826649,1723605068805,-1145.17,0.00014246,2]
[334826650,1723605068815,-500.0,0.00014246,2]
[334826651,1723605068824,-3219.63,0.00014246,2]
[334826652,1723605068835,-500.0,0.00014246,2]
[334826653,1723605068845,-500.0,0.00014246,2]
[334826654,1723605068854,-602.6,0.00014246,2]
[334826655,1723605068864,-500.0,0.00014246,2]
[334826656,1723605068873,-1191.07,0.00014246,2]
[334826657,1723605068883,-1014.7,0.00014246,2]
[334826658,1723605068892,-500.0,0.00014246,2]
[334826659,1723605068902,-500.0,0.00014246,2]
[334826660,1723605068911,-500.0,0.00014246,2]
[334826661,1723605068921,-500.0,0.00014246,2]
[334826662,1723605068930,-2275.75,0.00014246,2]
[334826663,1723605068940,-500.0,0.00014246,2]
[334826664,1723605068949,-500.0,0.00014246,2]
[334826665,1723605068958,-630.85,0.00014246,2]
[334826666,1723605068968,-3552.25,0.00014246,2]
[334826667,1723605068977,-876.93,0.00014246,2]
[334826668,1723605068986,-500.0,0.00014246,2]
[334826669,1723605068996,-500.0,0.00014246,2]
[334826670,1723605069005,-350.13501836,0.00014246,2]
[334826671,1723605069015,-500.0,0.00014246,2]
[334826672,1723605069024,-4102.14,0.00014246,2]
[334826673,1723605069034,-1191.95,0.00014246,2]
[334826674,1723605069043,-500.0,0.00014246,2]
[334826675,1723605069052,-996.84,0.00014246,2]
[334826676,1723605069062,-500.0,0.00014246,2]
[334826677,1723605069070,-3880.01,0.00014246,2]
[334826678,1723605069082,-500.0,0.00014246,2]
[334826679,1723605069092,-646.16,0.00014246,2]
[334826680,1723605069101,-1159.56,0.00014246,2]
[334826681,1723605069111,-501.48790565,0.00014246,2]
[334826682,1723605069122,-2612.35,0.00014246,2]
[334826683,1723605069132,-769.7,0.00014246,2]
[334826684,1723605069141,-589.53,0.00014246,2]
[334826685,1723605069151,-1492.63,0.00014246,2]
[334826686,1723605069160,-500.0,0.00014246,2]
[334826687,1723605069170,-1127.31,0.00014246,2]
[334826688,1723605069179,-1344.56,0.00014246,2]
[334826689,1723605069189,-582.87,0.00014246,2]
[334826690,1723605069198,-500.0,0.00014246,2]
[334826691,1723605069207,-500.0,0.00014246,2]
[334826692,1723605069217,-501.42161407,0.00014246,2]
[334826693,1723605069227,-228.60851974,0.00014246,2]
[334826694,1723605069236,-500.0,0.00014246,2]
[334826695,1723605069245,-955.28,0.00014246,2]
[334826696,1723605069255,-500.0,0.00014246,2]
[334826697,1723605069264,-500.0,0.00014246,2]
[334826698,1723605069274,-500.0,0.00014246,2]
[334826699,1723605069283,-394.22340034,0.00014246,2]
[334826700,1723605069293,-1804.03,0.00014246,2]
[334826701,1723605069303,-1584.08,0.00014246,2]
[334826702,1723605069312,-500.0,0.00014246,2]
[334826703,1723605069323,-2222.02,0.00014246,2]
[334826704,1723605069337,-500.0,0.00014246,2]
[334826705,1723605069346,-500.0,0.00014246,2]
[334826706,1723605069356,-501.42846647,0.00014246,2]
[334826707,1723605069365,-626.87,0.00014246,2]
[334826708,1723605069375,-2565.94,0.00014246,2]
[334826709,1723605069384,-500.0,0.00014246,2]
[334826710,1723605069393,-1633.43,0.00014246,2]
[334826711,1723605069403,-1002.48,0.00014246,2]
[334826712,1723605069413,-500.0,0.00014246,2]
[334826713,1723605069422,-1239.94,0.00014246,2]
[334826714,1723605069431,-1158.93,0.00014246,2]
[334826715,1723605069441,-1602.88,0.00014246,2]
[334826716,1723605069451,-500.0,0.00014246,2]
[334826717,1723605069460,-283.96164278,0.00014246,2]
[334826718,1723605069470,-985.46,0.00014246,2]
[334826719,1723605069480,-500.0,0.00014246,2]
[334826720,1723605069489,-500.0,0.00014246,2]
[334826721,1723605069498,-500.0,0.00014246,2]
[334826722,1723605069508,-500.0,0.00014246,2]
[334826723,1723605069517,-3593.7,0.00014246,2]
[334826724,1723605069527,-953.98,0.00014246,2]
[334826725,1723605069537,-1370.77,0.00014246,2]
[334826726,1723605069546,-737.54,0.00014246,2]
[334826727,1723605069556,-500.0,0.00014246,2]
[334826728,1723605069565,-500.0,0.00014246,2]
[334826729,1723605069574,-1630.24,0.00014246,2]
[334826730,1723605069590,-1897.14,0.00014246,2]
[334826731,1723605069599,-880.42,0.00014246,2]
[334826732,1723605069609,-500.0,0.00014246,2]
[334826733,1723605069618,-500.0,0.00014246,2]
[334826734,1723605069628,-500.0,0.00014246,2]
[334826735,1723605069637,-557.05,0.00014246,2]
[334826736,1723605069647,-875.47,0.00014246,2]
[334826737,1723605069656,-500.0,0.00014246,2]
[334826738,1723605069665,-500.0,0.00014246,2]
[334826739,1723605069674,-500.0,0.00014246,2]
[334826740,1723605069684,-500.0,0.00014246,2]
[334826741,1723605069694,-1181.63,0.00014246,2]
[334826742,1723605069703,-500.0,0.00014246,2]
[334826743,1723605069713,-1030.34,0.00014246,2]
[334826744,1723605069722,-2181.86,0.00014246,2]
[334826745,1723605069731,-2025.74,0.00014246,2]
[334826746,1723605069741,-500.0,0.00014246,2]
[334826747,1723605069750,-1413.32,0.00014246,2]
[334826748,1723605069759,-910.05,0.00014246,2]
[334826749,1723605069769,-500.0,0.00014246,2]
[334826750,1723605069778,-500.0,0.00014246,2]
[334826751,1723605069788,-500.0,0.00014246,2]
[334826752,1723605069797,-503.14,0.00014246,2]
[334826753,1723605069806,-529.76,0.00014246,2]
[334826754,1723605069815,-510.64,0.00014246,2]
[334826755,1723605069825,-1733.06,0.00014246,2]
[334826756,1723605069835,-868.31,0.00014246,2]
[334826757,1723605069844,-2269.46,0.00014246,2]
[334826758,1723605069853,-522.67,0.00014246,2]
[334826759,1723605069863,-500.0,0.00014246,2]
[334826760,1723605069872,-881.51,0.00014246,2]
[334826761,1723605069881,-1396.78,0.00014246,2]
[334826762,1723605069891,-706.73,0.00014246,2]
[334826763,1723605069901,-772.89,0.00014246,2]
[334826764,1723605069911,-500.0,0.00014246,2]
[334826765,1723605069920,-500.0,0.00014246,2]
[334826766,1723605069930,-2133.37,0.00014246,2]
[334826767,1723605069942,-500.0,0.00014246,2]
[334826768,1723605069952,-500.0,0.00014246,2]
[334826769,1723605069961,-500.0,0.00014246,2]
[334826770,1723605069971,-500.0,0.00014246,2]
[334826771,1723605069980,-1205.91,0.00014246,2]
[334826772,1723605070201,-500.0,0.00014246,2]
[334826773,1723605070219,-929.46,0.00014246,2]
[334826774,1723605070228,-500.0,0.00014246,2]
[334826775,1723605070238,-500.0,0.00014246,2]
[334826776,1723605070247,-613.02,0.00014246,2]
[334826777,1723605070257,-500.0,0.00014246,2]
[334826778,1723605070267,-2071.92,0.00014246,2]
[334826779,1723605070276,-849.35,0.00014246,2]
[334826780,1723605070286,-500.0,0.00014246,2]
[334826781,1723605070296,-500.0,0.00014246,2]
[334826782,1723605070305,-1149.19,0.00014246,2]
[334826783,1723605070315,-519.43,0.00014246,2]
[334826784,1723605070325,-816.63,0.00014246,2]
[334826785,1723605070339,-1338.21,0.00014246,2]
[334826786,1723605070348,-748.99,0.00014246,2]
[334826787,1723605070358,-500.0,0.00014246,2]
[334826788,1723605070368,-230.972883,0.00014246,2]
[334826789,1723605070379,-500.0,0.00014246,2]
[334826790,1723605070388,-500.0,0.00014246,2]
[334826791,1723605070398,-699.54,0.00014246,2]
[334826792,1723605070410,-1022.75,0.00014246,2]
[334826793,1723605070420,-523.86,0.00014246,2]
[334826794,1723605070429,-500.0,0.00014246,2]
[334826795,1723605070438,-612.84,0.00014246,2]
[334826796,1723605070448,-500.0,0.00014246,2]
[334826797,1723605070458,-500.0,0.00014246,2]
[334826798,1723605070469,-500.0,0.00014246,2]
[334826799,1723605070479,-500.0,0.00014246,2]
[334826800,1723605070488,-500.0,0.00014246,2]
[334826801,1723605070499,-1197.98,0.00014246,2]
[334826802,1723605070509,-919.6,0.00014246,2]
[334826803,1723605070519,-1287.56,0.00014246,2]
[334826804,1723605070529,-500.0,0.00014246,2]
[334826805,1723605070539,-503.29,0.00014246,2]
[334826806,1723605070548,-500.0,0.00014246,2]
[334826807,1723605070557,-500.0,0.00014246,2]
[334826808,1723605070567,-1236.66,0.00014246,2]
[334826809,1723605070576,-1706.6,0.00014246,2]
[334826810,1723605070588,-500.0,0.00014246,2]
[334826811,1723605070597,-727.3,0.00014246,2]
[334826812,1723605070607,-500.0,0.00014246,2]
[334826813,1723605070616,-500.0,0.00014246,2]
[334826814,1723605070626,-500.0,0.00014246,2]
[334826815,1723605070635,-536.46,0.00014246,2]
[334826816,1723605070644,-500.0,0.00014246,2]
[334826817,1723605070653,-721.37,0.00014246,2]
[334826818,1723605070664,-500.0,0.00014246,2]
[334826819,1723605070674,-2182.15,0.00014246,2]
[334826820,1723605070683,-606.86958302,0.00014246,2]
[334826821,1723605070693,-1786.37,0.00014246,2]
[334826822,1723605070703,-2427.03,0.00014246,2]
[334826823,1723605070712,-680.94,0.00014246,2]
[334826824,1723605070722,-500.0,0.00014246,2]
[334826825,1723605070731,-500.0,0.00014246,2]
[334826826,1723605070740,-771.59,0.00014246,2]
[334826827,1723605070750,-1367.74,0.00014246,2]
[334826828,1723605070759,-500.0,0.00014246,2]
[334826829,1723605070769,-1130.15,0.00014246,2]
[334826830,1723605070778,-1950.59,0.00014246,2]
[334826831,1723605070788,-750.13,0.00014246,2]
[334826832,1723605070798,-500.0,0.00014246,2]
[334826833,1723605070808,-500.0,0.00014246,2]
[334826834,1723605070817,-1812.05,0.00014246,2]
[334826835,1723605070830,-500.0,0.00014246,2]
[334826836,1723605070840,-576.07,0.00014246,2]
[334826837,1723605070851,-1411.86,0.00014246,2]
[334826838,1723605070861,-500.0,0.00014246,2]
[334826839,1723605070871,-672.92,0.00014246,2]
[334826840,1723605070880,-500.0,0.00014246,2]
[334826841,1723605070890,-2545.33,0.00014246,2]
[334826842,1723605070900,-500.0,0.00014246,2]
[334826843,1723605070910,-500.0,0.00014246,2]
[334826844,1723605070920,-500.0,0.00014246,2]
[334826845,1723605070930,-500.0,0.00014246,2]
[334826846,1723605070940,-500.0,0.00014246,2]
[334826847,1723605070950,-500.0,0.00014246,2]
[334826848,1723605070960,-541.3,0.00014246,2]
[334826849,1723605070970,-500.0,0.00014246,2]
[334826850,1723605070979,-872.09,0.00014246,2]
[334826851,1723605070989,-6288.73,0.00014246,2]
[334826852,1723605070998,-500.0,0.00014246,2]
[334826853,1723605071008,-500.0,0.00014246,2]
[334826854,1723605071018,-500.0,0.00014246,2]
[334826855,1723605071028,-500.0,0.00014246,2]
[334826856,1723605071037,-500.0,0.00014246,2]
[334826857,1723605071047,-1035.1,0.00014246,2]
[334826858,1723605071057,-500.0,0.00014246,2]
[334826859,1723605071067,-1340.06,0.00014246,2]
[334826860,1723605071077,-500.0,0.00014246,2]
[334826861,1723605071089,-500.0,0.00014246,2]
[334826862,1723605071099,-1609.25,0.00014246,2]
[334826863,1723605071108,-2362.09,0.00014246,2]
[334826864,1723605071118,-500.0,0.00014246,2]
[334826865,1723605071127,-500.0,0.00014246,2]
[334826866,1723605071137,-1034.45,0.00014246,2]
[334826867,1723605071146,-500.0,0.00014246,2]
[334826868,1723605071156,-902.63,0.00014246,2]
[334826869,1723605071165,-557.88,0.00014246,2]
[334826870,1723605071175,-500.0,0.00014246,2]
[334826871,1723605071184,-943.38,0.00014246,2]
[334826872,1723605071194,-3295.82,0.00014246,2]
[334826873,1723605071203,-500.0,0.00014246,2]
[334826874,1723605071212,-995.76,0.00014246,2]
[334826875,1723605071222,-500.0,0.00014246,2]
[334826876,1723605071232,-500.0,0.00014246,2]
[334826877,1723605071242,-500.0,0.00014246,2]
[334826878,1723605071252,-500.0,0.00014246,2]
[334826879,1723605071262,-756.18,0.00014246,2]
[334826880,1723605071271,-681.83,0.00014246,2]
[334826881,1723605071281,-500.0,0.00014246,2]
[334826882,1723605071290,-1346.5,0.00014246,2]
[334826883,1723605071300,-501.10987707,0.00014246,2]
[334826884,1723605071310,-1093.21,0.00014246,2]
[334826885,1723605071320,-1173.15,0.00014246,2]
[334826886,1723605071334,-1976.94,0.00014246,2]
[334826887,1723605071345,-675.4,0.00014246,2]
[334826888,1723605071355,-500.0,0.00014246,2]
[334826889,1723605071365,-500.0,0.00014246,2]
[334826890,1723605071375,-533.76,0.00014246,2]
[334826891,1723605071385,-817.86,0.00014246,2]
[334826892,1723605071395,-1591.01,0.00014246,2]
[334826893,1723605071404,-736.58,0.00014246,2]
[334826894,1723605071415,-500.0,0.00014246,2]
[334826895,1723605071424,-500.0,0.00014246,2]
[334826896,1723605071435,-1823.18,0.00014246,2]
[334826897,1723605071445,-500.0,0.00014246,2]
[334826898,1723605071454,-1560.86,0.00014246,2]
[334826899,1723605071464,-500.0,0.00014246,2]
[334826900,1723605071473,-500.0,0.00014246,2]
[334826901,1723605071483,-868.55,0.00014246,2]
[334826902,1723605071492,-703.88,0.00014246,2]
[334826903,1723605071502,-549.74,0.00014246,2]
[334826904,1723605071511,-500.0,0.00014246,2]
[334826905,1723605071521,-873.62,0.00014246,2]
[334826906,1723605071531,-500.0,0.00014246,2]
[334826907,1723605071541,-1218.76,0.00014246,2]
[334826908,1723605071550,-948.65,0.00014246,2]
[334826909,1723605071560,-530.56,0.00014246,2]
[334826910,1723605071570,-500.0,0.00014246,2]
[334826911,1723605071582,-1962.68,0.00014246,2]
[334826912,1723605071592,-500.0,0.00014246,2]
[334826913,1723605071601,-500.0,0.00014246,2]
[334826914,1723605071611,-3761.99,0.00014246,2]
[334826915,1723605071620,-1100.79,0.00014246,2]
[334826916,1723605071630,-519.9,0.00014246,2]
[334826917,1723605071640,-1091.85,0.00014246,2]
[334826918,1723605071650,-500.0,0.00014246,2]
[334826919,1723605071660,-500.0,0.00014246,2]
[334826920,1723605071671,-1899.15,0.00014246,2]
[334826921,1723605071681,-591.0,0.00014246,2]
[334826922,1723605071690,-500.0,0.00014246,2]
[334826923,1723605071701,-2902.42,0.00014246,2]
[334826924,1723605071711,-681.58,0.00014246,2]
[334826925,1723605071721,-979.62,0.00014246,2]
[334826926,1723605071730,-756.88,0.00014246,2]
[334826927,1723605071740,-500.0,0.00014246,2]
[334826928,1723605071750,-522.04,0.00014246,2]
[334826929,1723605071760,-500.0,0.00014246,2]
[334826930,1723605071770,-1101.29,0.00014246,2]
[334826931,1723605071780,-1108.67,0.00014246,2]
[334826932,1723605071790,-500.0,0.00014246,2]
[334826933,1723605071800,-500.0,0.00014246,2]
[334826934,1723605071810,-1192.85,0.00014246,2]
[334826935,1723605071820,-500.0,0.00014246,2]
[334826936,1723605071831,-1671.63,0.00014246,2]
[334826937,1723605071841,-738.15,0.00014246,2]
[334826938,1723605071851,-4757.69,0.00014246,2]
[334826939,1723605071860,-817.28,0.00014246,2]
[334826940,1723605071870,-500.0,0.00014246,2]
[334826941,1723605071879,-500.0,0.00014246,2]
[334826942,1723605071888,-1634.26,0.00014246,2]
[334826943,1723605071898,-1376.93,0.00014246,2]
[334826944,1723605071908,-500.0,0.00014246,2]
[334826945,1723605071918,-498.26473989,0.00014246,2]
[334826946,1723605071927,-500.0,0.00014246,2]
[334826947,1723605071937,-1110.82,0.00014246,2]
[334826948,1723605071946,-18059.26,0.00014246,2]
[334826949,1723605071956,-500.0,0.00014246,2]
[334826950,1723605071967,-2339.81,0.00014246,2]
[334826951,1723605071976,-815.45,0.00014246,2]
[334826952,1723605071986,-1022.58,0.00014246,2]
[334826953,1723605071995,-779.0,0.00014246,2]
[334826954,1723605072005,-1739.76,0.00014246,2]
[334826955,1723605072015,-501.01106726,0.00014246,2]
[334826956,1723605072024,-500.0,0.00014246,2]
[334826957,1723605072034,-500.0,0.00014246,2]
[334826958,1723605072043,-716.15,0.00014246,2]
[334826959,1723605072053,-500.0,0.00014246,2]
[334826960,1723605072062,-824.5,0.00014246,2]
[334826961,1723605072072,-611.72,0.00014246,2]
[334826962,1723605072082,-500.0,0.00014246,2]
[334826963,1723605072092,-500.0,0.00014246,2]
[334826964,1723605072101,-573.09,0.00014246,2]
[334826965,1723605072111,-564.02,0.00014246,2]
[334826966,1723605072120,-500.0,0.00014246,2]
[334826967,1723605072130,-1688.94,0.00014246,2]
[334826968,1723605072139,-500.0,0.00014246,2]
[334826969,1723605072148,-754.52,0.00014246,2]
[334826970,1723605072158,-500.0,0.00014246,2]
[334826971,1723605072167,-500.0,0.00014246,2]
[334826972,1723605072177,-2125.28,0.00014246,2]
[334826973,1723605072187,-862.91,0.00014246,2]
[334826974,1723605072197,-1627.71,0.00014246,2]
[334826975,1723605072207,-726.59,0.00014246,2]
[334826976,1723605072217,-301.4029093,0.00014246,2]
[334826977,1723605072226,-5975.91,0.00014246,2]
[334826978,1723605072236,-500.0,0.00014246,2]
[334826979,1723605072246,-1414.92,0.00014246,2]
[334826980,1723605072255,-592.73,0.00014246,2]
[334826981,1723605072265,-902.13,0.00014246,2]
[334826982,1723605072274,-5374.81,0.00014246,2]
[334826983,1723605072284,-2088.05,0.00014246,2]
[334826984,1723605072294,-1387.45,0.00014246,2]
[334826985,1723605072303,-768.36,0.00014246,2]
[334826986,1723605072313,-3876.74,0.00014246,2]
[334826987,1723605072323,-500.0,0.00014246,2]
[334826988,1723605072336,-246.76036447,0.00014246,2]
[334826989,1723605072346,-500.0,0.00014246,2]
[334826990,1723605072355,-1245.3,0.00014246,2]
[334826991,1723605072366,-500.0,0.00014246,2]
[334826992,1723605072377,-618.4,0.00014246,2]
[334826993,1723605072387,-300.07611252,0.00014246,2]
[334826994,1723605072397,-2815.43,0.00014246,2]
[334826995,1723605072409,-3826.76,0.00014246,2]
[334826996,1723605072420,-500.0,0.00014246,2]
[334826997,1723605072430,-807.19,0.00014246,2]
[334826998,1723605072440,-2271.26,0.00014246,2]
[334826999,1723605072451,-855.92,0.00014246,2]
[334827000,1723605072460,-7857.05,0.00014246,2]
[334827001,1723605072470,-1088.18,0.00014246,2]
[334827002,1723605072480,-500.0,0.00014246,2]
[334827003,1723605072490,-752.58,0.00014246,2]
[334827004,1723605072500,-218.53706582,0.00014246,2]
[334827005,1723605072510,-500.0,0.00014246,2]
[334827006,1723605072520,-3025.79,0.00014246,2]
[334827007,1723605072530,-2164.19,0.00014246,2]
[334827008,1723605072540,-3869.55,0.00014246,2]
[334827009,1723605072550,-528.1736166,0.00014246,2]
[334827010,1723605072560,-500.0,0.00014246,2]
[334827011,1723605072570,-892.24,0.00014246,2]
[334827012,1723605072585,-500.0,0.00014246,2]
[334827013,1723605072668,-662.61,0.00014246,2]
[334827014,1723605072678,-916.14,0.00014246,2]
[334827015,1723605072689,-795.16,0.00014246,2]
[334827016,1723605072699,-26609.07,0.00014246,2]
[334827017,1723605072709,-500.0,0.00014246,2]
[334827018,1723605072719,-500.0,0.00014246,2]
[334827019,1723605072728,-3398.55,0.00014246,2]
[334827020,1723605072739,-22218.98,0.00014246,2]
[334827021,1723605072748,-500.0,0.00014246,2]
[334827022,1723605072758,-2542.25,0.00014246,2]
[334827023,1723605072768,-1245.59,0.00014246,2]
[334827024,1723605072777,-500.0,0.00014246,2]
[334827025,1723605072787,-1016.07,0.00014246,2]
[334827026,1723605072796,-500.0,0.00014246,2]
[334827027,1723605072805,-2255.75,0.00014246,2]
[334827028,1723605072815,-500.0,0.00014246,2]
[334827029,1723605072824,-500.0,0.00014246,2]
[334827030,1723605072836,-1410.58,0.00014246,2]
[334827031,1723605072846,-500.0,0.00014246,2]
[334827032,1723605072855,-941.19,0.00014246,2]
[334827033,1723605072864,-8200.38,0.00014246,2]
[334827034,1723605072874,-500.0,0.00014246,2]
[334827035,1723605072883,-500.0,0.00014246,2]
[334827036,1723605072892,-5134.83,0.00014246,2]
[334827037,1723605072902,-500.0,0.00014246,2]
[334827038,1723605072911,-1475.56,0.00014246,2]
[334827039,1723605072921,-500.0,0.00014246,2]
[334827040,1723605072930,-1590.03,0.00014246,2]
[334827041,1723605072939,-500.0,0.00014246,2]
[334827042,1723605072948,-500.0,0.00014246,2]
[334827043,1723605072957,-2005.17,0.00014246,2]
[334827044,1723605072966,-500.0,0.00014246,2]
[334827045,1723605072975,-500.0,0.00014246,2]
[334827046,1723605072985,-500.0,0.00014246,2]
[334827047,1723605072994,-500.0,0.00014246,2]
[334827048,1723605073003,-598.02,0.00014246,2]
[334827049,1723605073012,-12984.39,0.00014246,2]
[334827050,1723605073021,-7951.86,0.00014246,2]
[334827051,1723605073031,-1032.44,0.00014246,2]
[334827052,1723605073040,-739.61,0.00014246,2]
[334827053,1723605073049,-500.0,0.00014246,2]
[334827054,1723605073058,-500.0,0.00014246,2]
[334827055,1723605073067,-2078.47,0.00014246,2]
[334827056,1723605073076,-500.0,0.00014246,2]
[334827057,1723605073088,-3476.41,0.00014246,2]
[334827058,1723605073097,-39703.17,0.00014246,2]
[334827059,1723605073106,-18895.17,0.00014246,2]
[334827060,1723605073116,-2008.56,0.00014246,2]
[334827061,1723605073126,-500.0,0.00014246,2]
[334827062,1723605073135,-500.0,0.00014246,2]
[334827063,1723605073144,-504.69883008,0.00014246,2]
[334827064,1723605073154,-16246.9,0.00014246,2]
[334827065,1723605073163,-960.08,0.00014246,2]
[334827066,1723605073172,-501.65358323,0.00014246,2]
[334827067,1723605073181,-23755.04,0.00014246,2]
[334827068,1723605073190,-500.0,0.00014246,2]
[334827069,1723605073199,-1931.43,0.00014246,2]
[334827070,1723605073209,-1617.8,0.00014246,2]
[334827071,1723605073218,-596.55,0.00014246,2]
[334827072,1723605073227,-1313.03,0.00014246,2]
[334827073,1723605073236,-500.0,0.00014246,2]
[334827074,1723605073246,-7013.22,0.00014246,2]
[334827075,1723605073256,-2434.61347984,0.00014246,2]
[334827076,1723605073833,-3110.13652016,0.00014246,2]
[334827077,1723605073843,-500.0,0.00014246,2]
[334827078,1723605073852,-500.0,0.00014246,2]
[334827079,1723605073861,-502.28,0.00014246,2]
[334827080,1723605073871,-13355.74,0.00014246,2]
[334827081,1723605073881,-500.0,0.00014246,2]
[334827082,1723605073890,-560.1,0.00014246,2]
[334827083,1723605073900,-500.0,0.00014246,2]
[334827084,1723605073909,-500.0,0.00014246,2]
[334827085,1723605073919,-500.0,0.00014246,2]
[334827086,1723605073929,-2441.9,0.00014246,2]
[334827087,1723605073938,-1240.21,0.00014246,2]
[334827088,1723605073947,-2489.4,0.00014246,2]
[334827089,1723605073957,-1135.86,0.00014246,2]
[334827090,1723605073966,-500.0,0.00014246,2]
[334827091,1723605073976,-500.0,0.00014246,2]
[334827092,1723605073985,-500.0,0.00014246,2]
[334827093,1723605073995,-500.0,0.00014246,2]
[334827094,1723605074005,-4723.94,0.00014246,2]
[334827095,1723605074014,-500.0,0.00014246,2]
[334827096,1723605074023,-824.22,0.00014246,2]
[334827097,1723605074033,-4121.71,0.00014246,2]
[334827098,1723605074043,-500.0,0.00014246,2]
[334827099,1723605074053,-500.0,0.00014246,2]
[334827100,1723605074062,-504.02954294,0.00014246,2]
[334827101,1723605074072,-500.0,0.00014246,2]
[334827102,1723605074083,-500.0,0.00014246,2]